fUSD/lending_fUSD_20250530
["ID","MTS","AMOUNT","RATE_DAILY","PERIOD"]
[363205884,1748623846155,-538.38964601,0.0002,2]
[363205888,1748623846166,-4000.0,0.0002,4]
[363205890,1748623846180,-500.0,0.0002,2]
[363205893,1748623846190,-500.0,0.00020027,2]
[363205896,1748623846199,-151.0,0.00020043,2]
[363205901,1748623846209,-500.0,0.00020055,2]
[363205905,1748623846219,-1312.56,0.00020059,2]
[363205910,1748623846229,-500.0,0.00020082,2]
[363205913,1748623846239,-151.0,0.00020098,2]
[363205916,1748623846249,-500.0,0.0002011,2]
[363205920,1748623846259,-500.0,0.00020137,2]
[363205923,1748623846269,-151.0,0.00020153,2]
[363205926,1748623846279,-258.77567291,0.00020164,2]
[363205928,1748623846290,-1179.86091638,0.0002017,2]
[363205930,1748623846300,-1179.86091638,0.0002017,2]
[363205932,1748623846310,-219.76,0.00020187,2]
[363205934,1748623846320,-151.0,0.00020208,2]
[363205937,1748623846330,-315.0,0.00020255,2]
[363205940,1748623846340,-151.0,0.00020263,2]
[363205942,1748623846350,-500.0,0.00020318,2]
[363205945,1748623846360,-202.0271829,0.00020318,2]
[363205947,1748623846371,-150.0,0.00020318,2]
[363205950,1748623846381,-151.0,0.00020318,2]
[363205952,1748623846391,-500.0,0.00020345,2]
[363205955,1748623846402,-150.0,0.00020345,2]
[363205958,1748623846413,-500.0,0.00020373,2]
[363205961,1748623846425,-151.0,0.00020373,2]
[363205964,1748623846435,-260.97,0.000204,2]
[363205966,1748623846446,-500.0,0.000204,2]
[363205969,1748623846455,-175.66529843,0.00020428,2]
[363205971,1748623846466,-150.0,0.00020428,2]
[363205974,1748623846475,-150.0,0.00020428,2]
[363205977,1748623846485,-150.0,0.00020428,2]
[363205979,1748623846496,-151.0,0.00020428,2]
[363205981,1748623846506,-150.0,0.00020455,2]
[363205984,1748623846515,-150.0,0.00020455,2]
[363205987,1748623846526,-150.0,0.00020483,2]
[363205990,1748623846535,-150.0,0.00020483,2]
[363205992,1748623846547,-151.0,0.00020483,2]
[363205995,1748623846556,-206.0,0.00020497,2]
[363205998,1748623846566,-206.0,0.00020497,2]
[363206000,1748623846576,-150.0,0.0002051,2]
[363206002,1748623846585,-200.0,0.0002051,2]
[363206004,1748623846595,-1000.0,0.00020521,2]
[363206006,1748623846605,-1000.0,0.00020521,2]
[363206008,1748623846614,-1000.0,0.00020521,2]
[363206010,1748623846624,-1000.0,0.00020521,2]
[363206012,1748623846634,-508.75306896,0.00020521,2]
[363206014,1748623846643,-1000.0,0.00020521,2]
[363206016,1748623846652,-199.92,0.00020532,2]
[363206018,1748623846661,-199.92,0.00020537,2]
[363206020,1748623846674,-151.0,0.00020538,2]
[363206022,1748623846684,-157.66341022,0.00020539,2]
[363206024,1748623846693,-199.92,0.00020543,2]
[363206027,1748623846703,-199.92,0.00020548,2]
[363206029,1748623846712,-199.92,0.00020554,2]
[363206031,1748623846721,-199.92,0.00020559,2]
[363206033,1748623846731,-199.92,0.00020564,2]
[363206035,1748623846740,-199.92,0.0002057,2]
[363206037,1748623846750,-199.92,0.00020575,2]
[363206038,1748623846759,-199.92,0.00020581,2]
[363206041,1748623846768,-199.92,0.00020586,2]
[363206042,1748623846778,-199.92,0.00020591,2]
[363206045,1748623846788,-151.0,0.00020593,2]
[363206047,1748623846798,-199.92,0.00020597,2]
[363206048,1748623846807,-199.92,0.00020602,2]
[363206050,1748623846817,-199.92,0.00020608,2]
[363206052,1748623846826,-199.92,0.00020613,2]
[363206055,1748623846835,-199.92,0.00020618,2]
[363206058,1748623846844,-199.92,0.00020624,2]
[363206061,1748623846853,-199.92,0.00020629,2]
[363206064,1748623846862,-199.92,0.00020635,2]
[363206067,1748623846871,-183.78044,0.00020648,2]
[363206068,1748623846881,-376.3724,0.000207,2]
[363206070,1748623846890,-4336.98375392,0.000209,4]
[363206072,1748623846900,-4336.98375383,0.000209,4]
[363206074,1748623846909,-4336.98375383,0.000209,4]
[363206076,1748623846921,-4336.98375383,0.000209,4]
[363206078,1748623846932,-4336.98375383,0.000209,4]
[363206080,1748623846941,-376.3724,0.0002092,2]
[363206082,1748623846951,-1000.0,0.00020986,2]
[363206084,1748623846960,-163.75530595,0.00020996,2]
[363206086,1748623846969,-4000.0,0.00021,4]
[363206088,1748623846979,-1510.69853194,0.00021068,2]
[363206090,1748623846989,-1500.0,0.00021068,2]
[363206092,1748623846999,-1500.0,0.00021068,2]
[363206094,1748623847008,-164.56024287,0.00021068,2]
[363206096,1748623847017,-1500.0,0.00021068,2]
[363206098,1748623847026,-4336.98375383,0.00021107,4]
[363206100,1748623847036,-157.66341022,0.00021178,2]
[363206102,1748623847046,-8018.17298592,0.00021227,2]
[363206103,1748623847055,-376.3724,0.0002123,2]
[363206104,1748623847065,-169.87,0.00021259,2]
[363206105,1748623847074,-4336.98375383,0.00021348,5]
[363206106,1748623847084,-164.27,0.00021369,2]
[363206107,1748623847093,-1000.0,0.00021481,2]
[363206108,1748623847103,-313.0,0.00021537,2]
[363206109,1748623847113,-376.37241,0.0002155,2]
[363206110,1748623847123,-250.0,0.0002156,2]
[363206111,1748623847133,-1680.0,0.0002156,2]
[363206112,1748623847143,-4336.98375383,0.0002159,5]
[363206113,1748623847153,-312.91702686,0.00021616,2]
[363206116,1748623847163,-1777.58349577,0.00021616,2]
[363206117,1748623847175,-1000.0,0.00021616,2]
[363206119,1748623847184,-18347.66,0.0002162,2]
[363206121,1748623847193,-1091.97,0.00021649,2]
[363206123,1748623847203,-3243.51750829,0.000217,2]
[363206125,1748623847213,-1000.0,0.00021773,2]
[363206127,1748623847222,-420.0,0.00021775,2]
[363206130,1748623847232,-157.66341022,0.00021818,2]
[363206132,1748623847242,-4336.98375383,0.00021831,6]
[363206134,1748623847252,-376.3724,0.0002186,2]
[363206136,1748623847262,-173.84,0.0002187,2]
[363206138,1748623847271,-86739.08713583,0.000219,2]
[363206139,1748623847280,-154.791,0.00021906,2]
[363206140,1748623847289,-971.312,0.00021906,2]
[363206141,1748623847299,-1314.0,0.00021906,2]
[363206142,1748623847308,-634.0,0.00021906,2]
[363206143,1748623847317,-811.0,0.00021906,2]
[363206144,1748623847326,-556.0,0.00021906,2]
[363206145,1748623847335,-924.0,0.00021906,2]
[363206146,1748623847344,-588.0,0.00021906,2]
[363206147,1748623847353,-1268.0,0.00021906,2]
[363206148,1748623847362,-1466.0,0.00021906,2]
[363206149,1748623847371,-882.0,0.00021906,2]
[363206150,1748623847380,-848.0,0.00021906,2]
[363206152,1748623847389,-4068.0,0.00021906,2]
[363206154,1748623847398,-6929.0,0.00021906,2]
[363206156,1748623847407,-274.455,0.00021906,2]
[363206158,1748623847417,-284.369,0.00021906,2]
[363206160,1748623847431,-9319.80896979,0.00021907,2]
[363206162,1748623847440,-426.5,0.00021917,2]
[363206164,1748623847450,-420.0,0.00021917,2]
[363206166,1748623847459,-422.18093693,0.00021917,2]
[363206168,1748623847469,-420.0,0.00021917,2]
[363206170,1748623847479,-420.0,0.00021917,2]
[363206172,1748623847489,-420.0,0.00021917,2]
[363206174,1748623847499,-420.0,0.00021917,2]
[363206176,1748623847509,-420.0,0.00021917,2]
[363206178,1748623847520,-420.0,0.00021917,2]
[363206180,1748623847529,-420.0,0.00021917,2]
[363206182,1748623847538,-420.0,0.00021917,2]
[363206184,1748623847551,-420.0,0.00021917,2]
[363206186,1748623847560,-420.0,0.00021917,2]
[363206188,1748623847570,-420.0,0.00021917,2]
[363206190,1748623847580,-420.0,0.00021917,2]
[363206192,1748623847590,-535.71,0.00021917,2]
[363206194,1748623847599,-420.0,0.00021917,2]
[363206195,1748623847609,-420.0,0.00021917,2]
[363206198,1748623847620,-420.0,0.00021917,2]
[363206200,1748623847630,-480.21,0.00021917,2]
[363206202,1748623847639,-423.66635723,0.00021917,2]
[363206204,1748623847649,-426.26885818,0.00021917,2]
[363206206,1748623847659,-952.02,0.00021917,2]
[363206208,1748623847671,-420.0,0.00021917,2]
[363206210,1748623847684,-420.0,0.00021917,2]
[363206212,1748623847693,-420.0,0.00021917,2]
[363206214,1748623847703,-420.0,0.00021917,2]
[363206216,1748623847712,-420.0,0.00021917,2]
[363206217,1748623847722,-420.0,0.00021917,2]
[363206219,1748623847731,-458.52,0.00021917,2]
[363206221,1748623847741,-420.0,0.00021917,2]
[363206223,1748623847750,-420.0,0.00021917,2]
[363206248,1748623847994,-420.0,0.00021917,2]
[363206250,1748623848006,-350.60264109,0.00021917,2]
[363206252,1748623848016,-610.95,0.00021917,2]
[363206255,1748623848028,-420.0,0.00021917,2]
[363206257,1748623848038,-420.0,0.00021917,2]
[363206258,1748623848048,-420.0,0.00021917,2]
[363206261,1748623848059,-420.0,0.00021917,2]
[363206263,1748623848070,-420.0,0.00021917,2]
[363206264,1748623848081,-187.99940836,0.00021917,2]
[363206266,1748623848090,-500.0,0.00021917,2]
[363206269,1748623848101,-500.0,0.00021917,2]
[363206270,1748623848110,-420.0,0.00021917,2]
[363206272,1748623848121,-500.0,0.00021917,2]
[363206275,1748623848131,-500.0,0.00021917,2]
[363206276,1748623848140,-500.0,0.00021917,2]
[363206279,1748623848151,-424.81836689,0.00021917,2]
[363206281,1748623848161,-420.0,0.00021917,2]
[363206283,1748623848177,-420.0,0.00021917,2]
[363206285,1748623848187,-425.19168357,0.00021917,2]
[363206287,1748623848197,-420.0,0.00021917,2]
[363206289,1748623848207,-1000.0,0.00021917,2]
[363206290,1748623848217,-420.0,0.00021917,2]
[363206292,1748623848226,-419.93649156,0.00021917,2]
[363206294,1748623848238,-424.03643265,0.00021917,2]
[363206295,1748623848248,-385.31970606,0.00021917,2]
[363206297,1748623848258,-530.64,0.00021917,2]
[363206298,1748623848268,-420.0,0.00021917,2]
[363206300,1748623848278,-420.0,0.00021917,2]
[363206302,1748623848289,-420.0,0.00021917,2]
[363206304,1748623848300,-420.0,0.00021917,2]
[363206306,1748623848309,-420.0,0.00021917,2]
[363206308,1748623848325,-420.0,0.00021917,2]
[363206310,1748623848338,-420.0,0.00021917,2]
[363206312,1748623848348,-420.0,0.00021917,2]
[363206314,1748623848358,-420.0,0.00021917,2]
[363206316,1748623848367,-420.0,0.00021917,2]
[363206318,1748623848377,-420.0,0.00021917,2]
[363206319,1748623848386,-420.0,0.00021917,2]
[363206322,1748623848396,-420.0,0.00021917,2]
[363206323,1748623848406,-420.0,0.00021917,2]
[363206325,1748623848416,-420.0,0.00021917,2]
[363206327,1748623848432,-420.0,0.00021917,2]
[363206329,1748623848442,-420.0,0.00021917,2]
[363206331,1748623848452,-420.0,0.00021917,2]
[363206333,1748623848461,-1175.45,0.00021917,2]
[363206335,1748623848470,-418.15970756,0.00021917,2]
[363206337,1748623848482,-420.0,0.00021917,2]
[363206339,1748623848492,-478.61,0.00021917,2]
[363206340,1748623848502,-420.0,0.00021917,2]
[363206341,1748623848513,-420.0,0.00021917,2]
[363206342,1748623848527,-420.0,0.00021917,2]
[363206343,1748623848538,-420.0,0.00021917,2]
[363206344,1748623848550,-420.0,0.00021917,2]
[363206345,1748623848560,-688.56,0.00021917,2]
[363206346,1748623848571,-420.0,0.00021917,2]
[363206347,1748623848581,-420.0,0.00021917,2]
[363206348,1748623848591,-420.0,0.00021917,2]
[363206349,1748623848602,-420.0,0.00021917,2]
[363206350,1748623848612,-420.0,0.00021917,2]
[363206351,1748623848622,-209.53737944,0.00021917,2]
[363206352,1748623848632,-420.0,0.00021917,2]
[363206353,1748623848643,-420.0,0.00021917,2]
[363206354,1748623848653,-420.0,0.00021917,2]
[363206355,1748623848664,-420.0,0.00021917,2]
[363206356,1748623848679,-420.0,0.00021917,2]
[363206357,1748623848689,-420.0,0.00021917,2]
[363206358,1748623848699,-420.0,0.00021917,2]
[363206359,1748623848708,-420.0,0.00021917,2]
[363206360,1748623848718,-422.82350075,0.00021917,2]
[363206361,1748623848728,-420.0,0.00021917,2]
[363206362,1748623848739,-422.94245492,0.00021917,2]
[363206363,1748623848749,-420.0,0.00021917,2]
[363206364,1748623848760,-420.0,0.00021917,2]
[363206365,1748623848770,-420.0,0.00021917,2]
[363206366,1748623848781,-420.0,0.00021917,2]
[363206367,1748623848791,-420.0,0.00021917,2]
[363206368,1748623848801,-420.0,0.00021917,2]
[363206369,1748623848812,-420.0,0.00021917,2]
[363206370,1748623848821,-420.0,0.00021917,2]
[363206371,1748623848831,-420.0,0.00021917,2]
[363206372,1748623848841,-420.0,0.00021917,2]
[363206373,1748623848851,-420.0,0.00021917,2]
[363206374,1748623848861,-420.0,0.00021917,2]
[363206375,1748623848870,-420.0,0.00021917,2]
[363206376,1748623848879,-612.25,0.00021917,2]
[363206377,1748623848890,-420.0,0.00021917,2]
[363206378,1748623848900,-420.0,0.00021917,2]
[363206379,1748623848910,-420.0,0.00021917,2]
[363206380,1748623848920,-420.0,0.00021917,2]
[363206381,1748623848934,-420.0,0.00021917,2]
[363206382,1748623848944,-542.39,0.00021917,2]
[363206383,1748623848955,-420.0,0.00021917,2]
[363206384,1748623848965,-649.81,0.00021917,2]
[363206385,1748623848975,-420.0,0.00021917,2]
[363206386,1748623848985,-420.0,0.00021917,2]
[363206387,1748623848995,-420.0,0.00021917,2]
[363206388,1748623849007,-420.0,0.00021917,2]
[363206389,1748623849017,-420.0,0.00021917,2]
[363206390,1748623849027,-423.54685664,0.00021917,2]
[363206391,1748623849039,-431.02172735,0.00021917,2]
[363206392,1748623849049,-420.0,0.00021917,2]
[363206393,1748623849058,-420.0,0.00021917,2]
[363206394,1748623849068,-420.0,0.00021917,2]
[363206395,1748623849077,-420.0,0.00021917,2]
[363206396,1748623849087,-420.0,0.00021917,2]
[363206397,1748623849097,-420.0,0.00021917,2]
[363206398,1748623849106,-459.23,0.00021917,2]
[363206399,1748623849115,-420.0,0.00021917,2]
[363206400,1748623849125,-420.0,0.00021917,2]
[363206401,1748623849134,-631.94,0.00021917,2]
[363206402,1748623849144,-420.0,0.00021917,2]
[363206403,1748623849153,-420.0,0.00021917,2]
[363206404,1748623849162,-420.0,0.00021917,2]
[363206405,1748623849172,-420.0,0.00021917,2]
[363206406,1748623849183,-555.0287129,0.00021917,2]
[363206407,1748623849192,-420.0,0.00021917,2]
[363206408,1748623849202,-420.0,0.00021917,2]
[363206409,1748623849211,-420.0,0.00021917,2]
[363206410,1748623849220,-420.0,0.00021917,2]
[363206411,1748623849229,-420.0,0.00021917,2]
[363206412,1748623849239,-421.65326913,0.00021917,2]
[363206413,1748623849249,-420.0,0.00021917,2]
[363206414,1748623849258,-420.0,0.00021917,2]
[363206415,1748623849268,-420.0,0.00021917,2]
[363206416,1748623849277,-427.94268077,0.00021917,2]
[363206417,1748623849286,-574.53,0.00021917,2]
[363206418,1748623849295,-420.0,0.00021917,2]
[363206419,1748623849305,-420.0,0.00021917,2]
[363206420,1748623849318,-420.0,0.00021917,2]
[363206421,1748623849329,-420.0,0.00021917,2]
[363206422,1748623849338,-295.31730787,0.00021917,2]
[363206423,1748623849346,-420.0,0.00021917,2]
[363206424,1748623849355,-452.89,0.00021917,2]
[363206425,1748623849364,-420.0,0.00021917,2]
[363206426,1748623849372,-420.0,0.00021917,2]
[363206427,1748623849381,-673.0,0.00021917,2]
[363206428,1748623849390,-420.0,0.00021917,2]
[363206429,1748623849398,-420.0,0.00021917,2]
[363206430,1748623849406,-420.0,0.00021917,2]
[363206431,1748623849413,-427.76305347,0.00021917,2]
[363206432,1748623849421,-424.18519386,0.00021917,2]
[363206433,1748623849433,-420.0,0.00021917,2]
[363206434,1748623849440,-897.65,0.00021917,2]
[363206435,1748623849449,-425.1036152,0.00021917,2]
[363206436,1748623849457,-1109.49,0.00021917,2]
[363206437,1748623849467,-420.0,0.00021917,2]
[363206438,1748623849477,-420.0,0.00021917,2]
[363206439,1748623849486,-420.0,0.00021917,2]
[363206440,1748623849497,-537.56980654,0.00021917,2]
[363206441,1748623849507,-420.0,0.00021917,2]
[363206442,1748623849518,-420.0,0.00021917,2]
[363206443,1748623849528,-400.8400434,0.00021917,2]
[363206444,1748623849538,-420.0,0.00021917,2]
[363206445,1748623849552,-420.16081802,0.00021917,2]
[363206446,1748623849561,-478.29,0.00021917,2]
[363206447,1748623849570,-420.0,0.00021917,2]
[363206448,1748623849581,-420.0,0.00021917,2]
[363206449,1748623849590,-420.0,0.00021917,2]
[363206450,1748623849600,-496.08673553,0.00021917,2]
[363206451,1748623849609,-420.0,0.00021917,2]
[363206452,1748623849619,-420.0,0.00021917,2]
[363206453,1748623849629,-360.95017308,0.00021917,2]
[363206454,1748623849639,-1117.4,0.00021917,2]
[363206455,1748623849648,-735.72,0.00021917,2]
[363206456,1748623849658,-420.0,0.00021917,2]
[363206457,1748623849667,-420.0,0.00021917,2]
[363206458,1748623849680,-420.0,0.00021917,2]
[363206459,1748623849690,-420.0,0.00021917,2]
[363206460,1748623849699,-420.0,0.00021917,2]
[363206461,1748623849710,-420.0,0.00021917,2]
[363206462,1748623849719,-420.0,0.00021917,2]
[363206463,1748623849740,-420.0,0.00021917,2]
[363206464,1748623849756,-420.0,0.00021917,2]
[363206465,1748623849771,-265.17257743,0.00021917,2]
[363206466,1748623849788,-425.85816924,0.00021917,2]
[363206467,1748623849805,-2192.84,0.00021917,2]
[363206468,1748623849820,-431.88224127,0.00021917,2]
[363206469,1748623849834,-478.4,0.00021917,2]
[363206470,1748623849847,-420.0,0.00021917,2]
[363206471,1748623849863,-420.0,0.00021917,2]
[363206472,1748623849879,-559.77,0.00021917,2]
[363206473,1748623849895,-941.66,0.00021917,2]
[363206474,1748623849912,-420.0,0.00021917,2]
[363206475,1748623849934,-420.0,0.00021917,2]
[363206476,1748623849951,-420.0,0.00021917,2]
[363206477,1748623849966,-420.0,0.00021917,2]
[363206478,1748623849984,-420.61241779,0.00021917,2]
[363206479,1748623849999,-420.0,0.00021917,2]
[363206480,1748623850013,-420.0,0.00021917,2]
[363206481,1748623850026,-629.32,0.00021917,2]
[363206482,1748623850043,-420.0,0.00021917,2]
[363206483,1748623850056,-655.94,0.00021917,2]
[363206484,1748623850068,-420.0,0.00021917,2]
[363206485,1748623850085,-646.24,0.00021917,2]
[363206486,1748623850098,-516.99369896,0.00021917,2]
[363206487,1748623850110,-427.63535684,0.00021917,2]
[363206488,1748623850123,-420.0,0.00021917,2]
[363206489,1748623850137,-420.0,0.00021917,2]
[363206490,1748623850151,-420.0,0.00021917,2]
[363206491,1748623850163,-420.0,0.00021917,2]
[363206492,1748623850181,-420.0,0.00021917,2]
[363206493,1748623850195,-1197.74,0.00021917,2]
[363206494,1748623850215,-460.72,0.00021917,2]
[363206495,1748623850230,-420.0,0.00021917,2]
[363206496,1748623850244,-420.0,0.00021917,2]
[363206497,1748623850258,-420.0,0.00021917,2]
[363206498,1748623850273,-548.7,0.00021917,2]
[363206499,1748623850287,-611.88,0.00021917,2]
[363206500,1748623850302,-420.0,0.00021917,2]
[363206501,1748623850317,-420.0,0.00021917,2]
[363206502,1748623850331,-420.0,0.00021917,2]
[363206503,1748623850344,-420.0,0.00021917,2]
[363206504,1748623850357,-420.0,0.00021917,2]
[363206505,1748623850371,-420.0,0.00021917,2]
[363206506,1748623850385,-420.0,0.00021917,2]
[363206507,1748623850400,-1153.56,0.00021917,2]
[363206508,1748623850413,-420.0,0.00021917,2]
[363206509,1748623850432,-420.0,0.00021917,2]
[363206510,1748623850445,-420.0,0.00021917,2]
[363206511,1748623850459,-420.0,0.00021917,2]
[363206512,1748623850472,-424.30498866,0.00021917,2]
[363206513,1748623850486,-420.0,0.00021917,2]
[363206514,1748623850501,-612.61,0.00021917,2]
[363206515,1748623850514,-420.0,0.00021917,2]
[363206516,1748623850529,-420.0,0.00021917,2]
[363206517,1748623850543,-420.0,0.00021917,2]
[363206518,1748623850559,-420.0,0.00021917,2]
[363206519,1748623850574,-420.0,0.00021917,2]
[363206520,1748623850588,-420.0,0.00021917,2]
[363206521,1748623850602,-420.0,0.00021917,2]
[363206522,1748623850616,-420.0,0.00021917,2]
[363206523,1748623850630,-420.0,0.00021917,2]
[363206524,1748623850643,-420.0,0.00021917,2]
[363206525,1748623850656,-500.0,0.00021917,2]
[363206526,1748623850669,-420.0,0.00021917,2]
[363206527,1748623850687,-500.0,0.00021917,2]
[363206528,1748623850700,-500.0,0.00021917,2]
[363206529,1748623850713,-778.7,0.00021917,2]
[363206530,1748623850727,-500.0,0.00021917,2]
[363206531,1748623850741,-1570.86,0.00021917,2]
[363206532,1748623850755,-500.0,0.00021917,2]
[363206533,1748623850769,-500.0,0.00021917,2]
[363206534,1748623850783,-500.0,0.00021917,2]
[363206535,1748623850797,-500.0,0.00021917,2]
[363206536,1748623850810,-420.0,0.00021917,2]
[363206537,1748623850824,-420.0,0.00021917,2]
[363206538,1748623850837,-500.0,0.00021917,2]
[363206539,1748623850850,-420.0,0.00021917,2]
[363206540,1748623850863,-500.0,0.00021917,2]
[363206541,1748623850877,-500.0,0.00021917,2]
[363206542,1748623850890,-501.87152561,0.00021917,2]
[363206543,1748623850903,-500.0,0.00021917,2]
[363206544,1748623850917,-1239.43,0.00021917,2]
[363206545,1748623850933,-420.0,0.00021917,2]
[363206546,1748623850946,-420.0,0.00021917,2]
[363206547,1748623850960,-420.0,0.00021917,2]
[363206548,1748623850974,-420.0,0.00021917,2]
[363206549,1748623850988,-421.61674665,0.00021917,2]
[363206550,1748623851001,-420.0,0.00021917,2]
[363206551,1748623851015,-588.29,0.00021917,2]
[363206552,1748623851027,-765.42,0.00021917,2]
[363206553,1748623851041,-421.92858148,0.00021917,2]
[363206554,1748623851054,-420.0,0.00021917,2]
[363206555,1748623851067,-420.0,0.00021917,2]
[363206556,1748623851080,-425.81653484,0.00021917,2]
[363206557,1748623851094,-420.0,0.00021917,2]
[363206558,1748623851106,-420.0,0.00021917,2]
[363206559,1748623851118,-420.0,0.00021917,2]
[363206560,1748623851132,-420.0,0.00021917,2]
[363206561,1748623851144,-600.84,0.00021917,2]
[363206562,1748623851157,-420.0,0.00021917,2]
[363206563,1748623851170,-422.18267876,0.00021917,2]
[363206564,1748623851188,-500.0,0.00021917,2]
[363206565,1748623851200,-1370.53,0.00021917,2]
[363206566,1748623851213,-500.0,0.00021917,2]
[363206567,1748623851226,-561.7,0.00021917,2]
[363206568,1748623851238,-500.0,0.00021917,2]
[363206569,1748623851251,-500.0,0.00021917,2]
[363206570,1748623851264,-500.0,0.00021917,2]
[363206571,1748623851277,-421.43523036,0.00021917,2]
[363206572,1748623851290,-1341.64,0.00021917,2]
[363206573,1748623851303,-849.49,0.00021917,2]
[363206574,1748623851316,-420.0,0.00021917,2]
[363206575,1748623851329,-420.0,0.00021917,2]
[363206576,1748623851343,-793.37,0.00021917,2]
[363206577,1748623851356,-420.0,0.00021917,2]
[363206578,1748623851368,-420.0,0.00021917,2]
[363206579,1748623851382,-420.0,0.00021917,2]
[363206580,1748623851395,-420.0,0.00021917,2]
[363206581,1748623851407,-420.0,0.00021917,2]
[363206582,1748623851420,-420.0,0.00021917,2]
[363206583,1748623851436,-420.0,0.00021917,2]
[363206584,1748623851448,-420.0,0.00021917,2]
[363206585,1748623851461,-420.0,0.00021917,2]
[363206586,1748623851474,-420.0,0.00021917,2]
[363206587,1748623851487,-420.0,0.00021917,2]
[363206588,1748623851500,-420.0,0.00021917,2]
[363206589,1748623851512,-420.0,0.00021917,2]
[363206590,1748623851525,-507.27,0.00021917,2]
[363206591,1748623851537,-406.42446387,0.00021917,2]
[363206592,1748623851553,-420.0,0.00021917,2]
[363206593,1748623851567,-420.96855741,0.00021917,2]
[363206594,1748623851579,-795.46,0.00021917,2]
[363206595,1748623851592,-420.0,0.00021917,2]
[363206596,1748623851606,-422.26076339,0.00021917,2]
[363206597,1748623851618,-420.0,0.00021917,2]
[363206598,1748623851631,-420.0,0.00021917,2]
[363206599,1748623851644,-420.0,0.00021917,2]
[363206600,1748623851656,-420.0,0.00021917,2]
[363206601,1748623851669,-420.0,0.00021917,2]
[363206602,1748623851684,-420.0,0.00021917,2]
[363206603,1748623851696,-420.0,0.00021917,2]
[363206604,1748623851709,-420.0,0.00021917,2]
[363206605,1748623851722,-420.0,0.00021917,2]
[363206606,1748623851735,-420.0,0.00021917,2]
[363206607,1748623851748,-365.86006778,0.00021917,2]
[363206608,1748623851761,-477.71731566,0.00021917,2]
[363206609,1748623851774,-420.0,0.00021917,2]
[363206610,1748623851786,-1299.18,0.00021917,2]
[363206611,1748623851798,-491.61,0.00021917,2]
[363206612,1748623851811,-420.0,0.00021917,2]
[363206613,1748623851824,-420.0,0.00021917,2]
[363206614,1748623851838,-420.0,0.00021917,2]
[363206615,1748623851851,-420.0,0.00021917,2]
[363206616,1748623851862,-420.0,0.00021917,2]
[363206617,1748623851872,-420.0,0.00021917,2]
[363206618,1748623851881,-420.0,0.00021917,2]
[363206619,1748623851891,-420.0,0.00021917,2]
[363206620,1748623851900,-420.0,0.00021917,2]
[363206621,1748623851909,-420.0,0.00021917,2]
[363206622,1748623851918,-420.0,0.00021917,2]
[363206623,1748623851930,-430.64479907,0.00021917,2]
[363206624,1748623851940,-420.0,0.00021917,2]
[363206625,1748623851949,-424.78446486,0.00021917,2]
[363206626,1748623851958,-420.0,0.00021917,2]
[363206627,1748623851968,-420.0,0.00021917,2]
[363206628,1748623851977,-422.75144719,0.00021917,2]